[Event "*** Titled Tuesday Blitz"]
[Site "Chess.com"]
[Date "2018.08.07"]
[Round "6"]
[White "2Tilted"]
[Black "nonscitis"]
[Result "1/2-1/2"]
[WhiteElo "2340"]
[BlackElo "2446"]
[TimeControl "180+2"]
[EndTime "14:19:33 PDT"]
[Termination "Game drawn by stalemate"]

1. d4 {[%clk 0:03:01.9]} 1... Nf6 {[%clk 0:02:59.3]} 2. Nf3 {[%clk 0:03:02]}
2... e6 {[%clk 0:02:59.3]} 3. c4 {[%clk 0:03:02.4]} 3... d5 {[%clk 0:02:54.3]}
4. g3 {[%clk 0:03:02.8]} 4... dxc4 {[%clk 0:02:54.4]} 5. Qa4+ {[%clk 0:03:00.2]}
5... Nbd7 {[%clk 0:02:50.5]} 6. Bg2 {[%clk 0:02:54.9]} 6... Be7 {[%clk
0:02:50.5]} 7. O-O {[%clk 0:02:55]} 7... a6 {[%clk 0:02:49.4]} 8. Qxc4 {[%clk
0:02:52]} 8... b5 {[%clk 0:02:49.1]} 9. Qc2 {[%clk 0:02:52.9]} 9... Bb7 {[%clk
0:02:49.7]} 10. a4 {[%clk 0:02:46.8]} 10... O-O {[%clk 0:02:49.5]} 11. axb5
{[%clk 0:02:46.4]} 11... axb5 {[%clk 0:02:50.1]} 12. Rxa8 {[%clk 0:02:47.8]}
12... Bxa8 {[%clk 0:02:42.9]} 13. Na3 {[%clk 0:02:46]} 13... b4 {[%clk
0:02:40.1]} 14. Nc4 {[%clk 0:02:45.7]} 14... Nb6 {[%clk 0:02:39.3]} 15. Na5
{[%clk 0:02:34.5]} 15... Bxf3 {[%clk 0:02:38.7]} 16. Bxf3 {[%clk 0:02:31.5]}
16... Qxd4 {[%clk 0:02:38.9]} 17. Qxc7 {[%clk 0:02:26.3]} 17... Nbd5 {[%clk
0:02:39.5]} 18. Nc6 {[%clk 0:02:22.5]} 18... Nxc7 {[%clk 0:02:31.6]} 19. Nxd4
{[%clk 0:02:23.2]} 19... Bc5 {[%clk 0:02:31.2]} 20. Nb3 {[%clk 0:02:19.8]} 20...
Bb6 {[%clk 0:02:30.6]} 21. Bd2 {[%clk 0:02:18.7]} 21... Rb8 {[%clk 0:02:29.4]}
22. Rc1 {[%clk 0:02:14.2]} 22... Ncd5 {[%clk 0:01:56.6]} 23. e4 {[%clk
0:02:12.6]} 23... Ne7 {[%clk 0:01:57.5]} 24. Kf1 {[%clk 0:02:03.4]} 24... h5
{[%clk 0:01:23.3]} 25. Rc4 {[%clk 0:01:59.9]} 25... Rd8 {[%clk 0:01:09.2]} 26.
Bxb4 {[%clk 0:01:56.1]} 26... Ng6 {[%clk 0:01:09.2]} 27. Bc3 {[%clk 0:01:50.2]}
27... Ng4 {[%clk 0:01:09.2]} 28. Kg2 {[%clk 0:01:40.1]} 28... Nxf2 {[%clk
0:01:03.2]} 29. Bxh5 {[%clk 0:01:37.5]} 29... Nd1 {[%clk 0:01:02.3]} 30. Bxg6
{[%clk 0:01:22.2]} 30... Ne3+ {[%clk 0:01:01.4]} 31. Kf3 {[%clk 0:01:17]} 31...
Nxc4 {[%clk 0:01:03.3]} 32. Bh5 {[%clk 0:01:16.1]} 32... g6 {[%clk 0:00:58.4]}
33. Bg4 {[%clk 0:01:15.7]} 33... Ne5+ {[%clk 0:00:58.6]} 34. Bxe5 {[%clk
0:01:15.7]} 34... Rd3+ {[%clk 0:00:57.5]} 35. Ke2 {[%clk 0:01:10.1]} 35... Rxb3
{[%clk 0:00:57.8]} 36. Bc3 {[%clk 0:01:10.6]} 36... f5 {[%clk 0:00:45.1]} 37.
exf5 {[%clk 0:01:10.5]} 37... gxf5 {[%clk 0:00:45.7]} 38. Bf3 {[%clk 0:01:10.8]}
38... Bd8 {[%clk 0:00:42.9]} 39. Kd3 {[%clk 0:01:09.8]} 39... Kf7 {[%clk
0:00:40.8]} 40. Kc4 {[%clk 0:01:07.9]} 40... Rb8 {[%clk 0:00:39.3]} 41. b4
{[%clk 0:01:08.4]} 41... Rc8+ {[%clk 0:00:35.8]} 42. Kb3 {[%clk 0:01:07.5]}
42... Rb8 {[%clk 0:00:35.3]} 43. Be5 {[%clk 0:01:07.2]} 43... Rb5 {[%clk
0:00:33.5]} 44. Bc3 {[%clk 0:01:03.7]} 44... Be7 {[%clk 0:00:34.3]} 45. Kc4
{[%clk 0:01:03.6]} 45... Rb8 {[%clk 0:00:34.2]} 46. b5 {[%clk 0:01:03.3]} 46...
Rc8+ {[%clk 0:00:35.3]} 47. Bc6 {[%clk 0:01:04.7]} 47... Bf6 {[%clk 0:00:29.1]}
48. Ba5 {[%clk 0:01:01.2]} 48... e5 {[%clk 0:00:28.3]} 49. Kd5 {[%clk
0:00:49.8]} 49... e4 {[%clk 0:00:28.6]} 50. b6 {[%clk 0:00:48.4]} 50... e3
{[%clk 0:00:28.4]} 51. b7 {[%clk 0:00:48.6]} 51... Rb8 {[%clk 0:00:29.2]} 52.
Kd6 {[%clk 0:00:44]} 52... e2 {[%clk 0:00:28.5]} 53. Bd5+ {[%clk 0:00:42]} 53...
Kg6 {[%clk 0:00:23.9]} 54. Kc6 {[%clk 0:00:42.4]} 54... Be5 {[%clk 0:00:21.5]}
55. Bf3 {[%clk 0:00:40.3]} 55... Re8 {[%clk 0:00:14.2]} 56. Bxe2 {[%clk
0:00:33.9]} 56... Bb8 {[%clk 0:00:15.1]} 57. Bc4 {[%clk 0:00:26]} 57... f4
{[%clk 0:00:13.5]} 58. gxf4 {[%clk 0:00:24.6]} 58... Bxf4 {[%clk 0:00:15.4]} 59.
Bc7 {[%clk 0:00:23.4]} 59... Bxc7 {[%clk 0:00:08.8]} 60. Kxc7 {[%clk 0:00:21.5]}
60... Re7+ {[%clk 0:00:10.1]} 61. Kc8 {[%clk 0:00:21.2]} 61... Rxb7 {[%clk
0:00:12]} 62. Kxb7 {[%clk 0:00:23.1]} 62... Kg5 {[%clk 0:00:13]} 63. Be6 {[%clk
0:00:24.1]} 63... Kh4 {[%clk 0:00:14.9]} 64. Kc7 {[%clk 0:00:24.5]} 64... Kg5
{[%clk 0:00:16.8]} 65. Kd7 {[%clk 0:00:25.8]} 65... Kh6 {[%clk 0:00:18.7]} 66.
Ke7 {[%clk 0:00:27.2]} 66... Kg7 {[%clk 0:00:20.6]} 67. Ke8 {[%clk 0:00:26.8]}
67... Kh8 {[%clk 0:00:22.5]} 68. Kf8 {[%clk 0:00:28.1]} 68... Kh7 {[%clk
0:00:23.8]} 69. Bf7 {[%clk 0:00:29.4]} 69... Kh8 {[%clk 0:00:25.7]} 70. h3
{[%clk 0:00:29.2]} 70... Kh7 {[%clk 0:00:27]} 71. Bg8+ {[%clk 0:00:30.7]} 71...
Kh8 {[%clk 0:00:28]} 72. Kf7 {[%clk 0:00:31.2]} 1/2-1/2

[Event "*** Titled Tuesday Blitz"]
[Site "Chess.com"]
[Date "2018.08.07"]
[Round "6"]
[White "MateusViageiro"]
[Black "Caisachess"]
[Result "1/2-1/2"]
[WhiteElo "2320"]
[BlackElo "2248"]
[TimeControl "180+2"]
[EndTime "14:19:36 PDT"]
[Termination "Game drawn by agreement"]

1. d4 {[%clk 0:03:01.9]} 1... Nf6 {[%clk 0:03:00.9]} 2. Nf3 {[%clk 0:03:01.4]}
2... e6 {[%clk 0:03:02]} 3. Bg5 {[%clk 0:03:01.2]} 3... Be7 {[%clk 0:03:01.9]}
4. Nbd2 {[%clk 0:03:02.1]} 4... d5 {[%clk 0:03:02.6]} 5. e3 {[%clk 0:03:02.9]}
5... O-O {[%clk 0:03:03]} 6. c3 {[%clk 0:03:04.1]} 6... c5 {[%clk 0:03:04.5]} 7.
Bd3 {[%clk 0:03:04.5]} 7... b6 {[%clk 0:03:05.4]} 8. O-O {[%clk 0:03:05.1]} 8...
Ba6 {[%clk 0:03:06.3]} 9. Bxa6 {[%clk 0:03:03.1]} 9... Nxa6 {[%clk 0:03:08.2]}
10. Qe2 {[%clk 0:03:04.6]} 10... Nc7 {[%clk 0:03:06.3]} 11. Ne5 {[%clk
0:03:05.7]} 11... h6 {[%clk 0:03:06.2]} 12. Bh4 {[%clk 0:03:06.1]} 12... Qe8
{[%clk 0:02:57.3]} 13. f4 {[%clk 0:03:06]} 13... Nb5 {[%clk 0:02:52.6]} 14. a4
{[%clk 0:03:00.5]} 14... Nd6 {[%clk 0:02:53.5]} 15. Kh1 {[%clk 0:03:01.6]} 15...
Nfe4 {[%clk 0:02:51.5]} 16. Be1 {[%clk 0:02:58.2]} 16... Nxd2 {[%clk 0:02:51.7]}
17. Bxd2 {[%clk 0:02:58.5]} 17... Ne4 {[%clk 0:02:53.1]} 18. Be1 {[%clk
0:02:59.7]} 18... c4 {[%clk 0:02:50.7]} 19. f5 {[%clk 0:03:00]} 19... Bf6 {[%clk
0:02:47.9]} 20. Ng4 {[%clk 0:03:00]} 20... Qd7 {[%clk 0:02:39.1]} 21. Nxf6+
{[%clk 0:02:55.9]} 21... Nxf6 {[%clk 0:02:39.4]} 22. Bh4 {[%clk 0:02:56.9]}
22... Ne4 {[%clk 0:02:37.6]} 23. f6 {[%clk 0:02:56.7]} 23... g6 {[%clk
0:02:37.9]} 24. Qg4 {[%clk 0:02:53.8]} 24... Kh7 {[%clk 0:02:37.9]} 25. Qh3
{[%clk 0:02:52.7]} 25... Rg8 {[%clk 0:02:25.5]} 26. Be1 {[%clk 0:02:41.5]} 26...
g5 {[%clk 0:02:24.4]} 27. Bg3 {[%clk 0:02:29.1]} 27... Rg6 {[%clk 0:02:21.2]}
28. Be5 {[%clk 0:02:29.5]} 28... b5 {[%clk 0:02:09.4]} 29. axb5 {[%clk
0:02:13.8]} 29... Qxb5 {[%clk 0:02:09.7]} 30. Ra2 {[%clk 0:02:13.5]} 30... a5
{[%clk 0:02:06.6]} 31. Qg4 {[%clk 0:02:10.6]} 31... a4 {[%clk 0:02:06.3]} 32.
Rfa1 {[%clk 0:02:06.6]} 32... Nxf6 {[%clk 0:02:04.2]} 33. Qf3 {[%clk 0:02:02.8]}
33... Nh5 {[%clk 0:01:38.7]} 34. Qxf7+ {[%clk 0:02:02]} 34... Ng7 {[%clk
0:01:40]} 35. Rf1 {[%clk 0:01:54.5]} 35... Qe8 {[%clk 0:01:30.7]} 36. Qxe8
{[%clk 0:01:29.3]} 36... Nxe8 {[%clk 0:01:24.5]} 37. h3 {[%clk 0:01:29.1]} 37...
Kg8 {[%clk 0:01:18]} 38. Rfa1 {[%clk 0:01:27.9]} 38... Ra6 {[%clk 0:01:07.9]}
39. Rxa4 {[%clk 0:01:28.6]} 39... Rxa4 {[%clk 0:01:00.9]} 40. Rxa4 {[%clk
0:01:30.5]} 40... Nf6 {[%clk 0:01:01.2]} 41. Ra8+ {[%clk 0:01:25]} 41... Kf7
{[%clk 0:01:01.1]} 42. Ra7+ {[%clk 0:01:26.1]} 42... Ke8 {[%clk 0:00:58.1]} 43.
Rb7 {[%clk 0:01:16.9]} 43... Ne4 {[%clk 0:00:56.2]} 44. b3 {[%clk 0:01:15.5]}
44... cxb3 {[%clk 0:00:55.4]} 45. Rxb3 {[%clk 0:01:15.5]} 45... h5 {[%clk
0:00:54.1]} 46. Rb8+ {[%clk 0:01:16.1]} 46... Kd7 {[%clk 0:00:53.1]} 47. Rb7+
{[%clk 0:01:16.7]} 47... Kc6 {[%clk 0:00:51.9]} 48. Rc7+ {[%clk 0:01:17.7]}
48... Kb5 {[%clk 0:00:52.4]} 49. Rh7 {[%clk 0:01:12.1]} 49... h4 {[%clk
0:00:51.1]} 50. Rc7 {[%clk 0:01:09.2]} 50... Ka4 {[%clk 0:00:51]} 51. c4 {[%clk
0:01:09.5]} 51... dxc4 {[%clk 0:00:48.9]} 52. Rxc4+ {[%clk 0:01:11.4]} 52... Kb5
{[%clk 0:00:49.5]} 53. Rc8 {[%clk 0:01:11.4]} 53... g4 {[%clk 0:00:41.6]} 54.
hxg4 {[%clk 0:01:10.3]} 54... Rxg4 {[%clk 0:00:42.4]} 55. Rh8 {[%clk 0:01:08.3]}
55... Nf2+ {[%clk 0:00:35]} 56. Kh2 {[%clk 0:01:07.2]} 56... Nd1 {[%clk
0:00:36.1]} 57. Kh3 {[%clk 0:01:06.7]} 57... Nxe3 {[%clk 0:00:37.2]} 58. Rh6
{[%clk 0:00:56.7]} 58... Rxg2 {[%clk 0:00:28.8]} 59. Bf4 {[%clk 0:00:56.7]}
59... Re2 {[%clk 0:00:28.3]} 60. Rxe6 {[%clk 0:00:56.5]} 60... Nd5 {[%clk
0:00:28.6]} 61. Rxe2 {[%clk 0:00:18.6]} 61... Nxf4+ {[%clk 0:00:29.2]} 62. Kxh4
{[%clk 0:00:20.4]} 62... Nxe2 {[%clk 0:00:31.1]} 1/2-1/2

[Event "*** Titled Tuesday Blitz"]
[Site "Chess.com"]
[Date "2018.08.07"]
[Round "6"]
[White "tomsishere"]
[Black "AndrewDGreen"]
[Result "0-1"]
[WhiteElo "2341"]
[BlackElo "2178"]
[TimeControl "180+2"]
[EndTime "14:19:38 PDT"]
[Termination "AndrewDGreen won by checkmate"]

1. e4 {[%clk 0:03:01.9]} 1... c5 {[%clk 0:02:09.1]} 2. Nf3 {[%clk 0:02:52.4]}
2... g6 {[%clk 0:02:09.6]} 3. d4 {[%clk 0:02:49.8]} 3... cxd4 {[%clk 0:02:11.5]}
4. Qxd4 {[%clk 0:02:50.4]} 4... Nf6 {[%clk 0:02:11.3]} 5. Nc3 {[%clk 0:02:50.8]}
5... Nc6 {[%clk 0:02:12.3]} 6. Qa4 {[%clk 0:02:50.7]} 6... d6 {[%clk 0:02:13.5]}
7. e5 {[%clk 0:02:48]} 7... dxe5 {[%clk 0:02:15.4]} 8. Nxe5 {[%clk 0:02:48.6]}
8... Bg7 {[%clk 0:02:14.5]} 9. Nxc6 {[%clk 0:02:45.7]} 9... bxc6 {[%clk
0:02:16.4]} 10. Bd3 {[%clk 0:02:32.9]} 10... O-O {[%clk 0:02:13.8]} 11. O-O
{[%clk 0:02:31.4]} 11... Nd5 {[%clk 0:02:06]} 12. Qxc6 {[%clk 0:02:27.6]} 12...
Be6 {[%clk 0:01:51.2]} 13. Bd2 {[%clk 0:02:21.4]} 13... Nb4 {[%clk 0:01:30.9]}
14. Qf3 {[%clk 0:02:13.7]} 14... Nxd3 {[%clk 0:01:31.9]} 15. cxd3 {[%clk
0:02:13.6]} 15... Rb8 {[%clk 0:01:29.4]} 16. Rab1 {[%clk 0:02:09.4]} 16... Bf5
{[%clk 0:01:26.8]} 17. Bf4 {[%clk 0:02:08.4]} 17... e5 {[%clk 0:01:15.8]} 18.
Bg3 {[%clk 0:01:59]} 18... Qxd3 {[%clk 0:01:15]} 19. Qc6 {[%clk 0:01:07.9]}
19... Rfc8 {[%clk 0:00:52.6]} 20. Qd5 {[%clk 0:01:07.3]} 20... Rxc3 {[%clk
0:00:46.3]} 21. bxc3 {[%clk 0:00:50.8]} 21... Rxb1 {[%clk 0:00:46]} 22. Qxd3
{[%clk 0:00:30]} 22... Bxd3 {[%clk 0:00:44.8]} 23. Rxb1 {[%clk 0:00:30.4]} 23...
Bxb1 {[%clk 0:00:46.7]} 24. a4 {[%clk 0:00:29.9]} 24... f5 {[%clk 0:00:39.3]}
25. f3 {[%clk 0:00:27.8]} 25... Kf7 {[%clk 0:00:33.2]} 26. a5 {[%clk 0:00:24.6]}
26... Bd3 {[%clk 0:00:30.8]} 27. a6 {[%clk 0:00:23.9]} 27... Bxa6 {[%clk
0:00:24.2]} 28. Bf2 {[%clk 0:00:25.1]} 28... Bd3 {[%clk 0:00:21.2]} 29. Bxa7
{[%clk 0:00:25.3]} 29... Ke6 {[%clk 0:00:21.7]} 30. Kf2 {[%clk 0:00:23.5]} 30...
Kd5 {[%clk 0:00:22.2]} 31. Ke3 {[%clk 0:00:24.2]} 31... Kc4 {[%clk 0:00:22]} 32.
Kd2 {[%clk 0:00:20.7]} 32... Bf1 {[%clk 0:00:18.6]} 33. g3 {[%clk 0:00:20.7]}
33... Bg2 {[%clk 0:00:19.5]} 34. Ke3 {[%clk 0:00:20.1]} 34... Kxc3 {[%clk
0:00:18.4]} 35. f4 {[%clk 0:00:21.1]} 35... e4 {[%clk 0:00:17.2]} 36. Bb6 {[%clk
0:00:21.8]} 36... Kc4 {[%clk 0:00:14.5]} 37. Ba7 {[%clk 0:00:22.5]} 37... Kd5
{[%clk 0:00:13.5]} 38. Bb6 {[%clk 0:00:23.5]} 38... Bf8 {[%clk 0:00:14.4]} 39.
Ke2 {[%clk 0:00:22.5]} 39... Bf3+ {[%clk 0:00:14.3]} 40. Ke1 {[%clk 0:00:21.5]}
40... Bc5 {[%clk 0:00:14.7]} 41. Ba5 {[%clk 0:00:22.2]} 41... Bg1 {[%clk
0:00:14.7]} 42. h3 {[%clk 0:00:21.9]} 42... h5 {[%clk 0:00:13.2]} 43. Bd8 {[%clk
0:00:21.4]} 43... Bd4 {[%clk 0:00:13.3]} 44. Bc7 {[%clk 0:00:20.7]} 44... e3
{[%clk 0:00:13.7]} 45. Bd8 {[%clk 0:00:20.3]} 45... Bc3+ {[%clk 0:00:13.5]} 46.
Kf1 {[%clk 0:00:19.2]} 46... e2+ {[%clk 0:00:14.5]} 47. Kf2 {[%clk 0:00:20.3]}
47... e1=Q+ {[%clk 0:00:15.7]} 48. Kxf3 {[%clk 0:00:21.5]} 48... Qe4+ {[%clk
0:00:16.6]} 49. Kf2 {[%clk 0:00:22.2]} 49... Bd4+ {[%clk 0:00:17.8]} 50. Kf1
{[%clk 0:00:23]} 50... Qd3+ {[%clk 0:00:18.4]} 51. Ke1 {[%clk 0:00:23.9]} 51...
Bc3+ {[%clk 0:00:18.7]} 52. Kf2 {[%clk 0:00:24.5]} 52... Qd2+ {[%clk 0:00:19.9]}
53. Kf3 {[%clk 0:00:25.2]} 53... Qd1+ {[%clk 0:00:21.2]} 54. Kf2 {[%clk
0:00:24.6]} 54... Be1+ {[%clk 0:00:22.1]} 55. Kf1 {[%clk 0:00:24.3]} 55... Bxg3+
{[%clk 0:00:22.5]} 56. Kg2 {[%clk 0:00:25.3]} 56... h4 {[%clk 0:00:20.3]} 57.
Bxh4 {[%clk 0:00:23]} 57... Bxh4 {[%clk 0:00:20.3]} 58. Kh2 {[%clk 0:00:24.1]}
58... Qe2+ {[%clk 0:00:20.7]} 59. Kh1 {[%clk 0:00:24.7]} 59... Qf3+ {[%clk
0:00:20.7]} 60. Kh2 {[%clk 0:00:25.5]} 60... Qg3+ {[%clk 0:00:21.7]} 61. Kh1
{[%clk 0:00:26.2]} 61... Qxh3+ {[%clk 0:00:22.9]} 62. Kg1 {[%clk 0:00:27.2]}
62... Qg3+ {[%clk 0:00:23.8]} 63. Kh1 {[%clk 0:00:28.2]} 63... Qxf4 {[%clk
0:00:23.9]} 64. Kg2 {[%clk 0:00:28.9]} 64... Bf6 {[%clk 0:00:24.6]} 65. Kh1
{[%clk 0:00:29.7]} 65... Be7 {[%clk 0:00:24.5]} 66. Kg2 {[%clk 0:00:30.4]} 66...
Bd6 {[%clk 0:00:25.6]} 67. Kg1 {[%clk 0:00:31.5]} 67... Ke4 {[%clk 0:00:24]} 68.
Kg2 {[%clk 0:00:31.9]} 68... g5 {[%clk 0:00:24.5]} 69. Kg1 {[%clk 0:00:32.8]}
69... g4 {[%clk 0:00:25.4]} 70. Kg2 {[%clk 0:00:34]} 70... Qf3+ {[%clk
0:00:26.4]} 71. Kg1 {[%clk 0:00:34.9]} 71... Bc5+ {[%clk 0:00:26.5]} 72. Kh2
{[%clk 0:00:35.9]} 72... Qf2+ {[%clk 0:00:27.5]} 73. Kh1 {[%clk 0:00:36.5]}
73... Qg1# {[%clk 0:00:26.9]} 0-1

[Event "*** Titled Tuesday Blitz"]
[Site "Chess.com"]
[Date "2018.08.07"]
[Round "6"]
[White "Haykos"]
[Black "W_Amadeus"]
[Result "1-0"]
[WhiteElo "2536"]
[BlackElo "2571"]
[TimeControl "180+2"]
[EndTime "14:20:05 PDT"]
[Termination "Haykos won by resignation"]

1. e4 {[%clk 0:03:01.9]} 1... e5 {[%clk 0:02:58.9]} 2. Nf3 {[%clk 0:02:55.9]}
2... Nc6 {[%clk 0:03:00.4]} 3. Bc4 {[%clk 0:02:55.9]} 3... Nf6 {[%clk
0:03:01.9]} 4. d3 {[%clk 0:02:56.6]} 4... Be7 {[%clk 0:03:03.3]} 5. O-O {[%clk
0:02:58.2]} 5... O-O {[%clk 0:03:03.5]} 6. a4 {[%clk 0:02:58.9]} 6... d5 {[%clk
0:02:54]} 7. exd5 {[%clk 0:02:56.9]} 7... Nxd5 {[%clk 0:02:55.9]} 8. a5 {[%clk
0:02:58.1]} 8... a6 {[%clk 0:02:46.7]} 9. Re1 {[%clk 0:02:57.7]} 9... Bg4 {[%clk
0:02:47.4]} 10. c3 {[%clk 0:02:57.9]} 10... Qd7 {[%clk 0:02:24]} 11. Nbd2 {[%clk
0:02:58.7]} 11... Kh8 {[%clk 0:02:02.4]} 12. Qb3 {[%clk 0:02:58.1]} 12... Nf4
{[%clk 0:01:56.5]} 13. Ne4 {[%clk 0:02:44.2]} 13... Nxg2 {[%clk 0:01:29.7]} 14.
Kxg2 {[%clk 0:02:39.5]} 14... Bh3+ {[%clk 0:01:30.8]} 15. Kg1 {[%clk 0:01:49.7]}
15... Qg4+ {[%clk 0:01:32.7]} 16. Ng3 {[%clk 0:01:48.4]} 16... Qxf3 {[%clk
0:01:19.6]} 17. Bd5 {[%clk 0:01:49.7]} 17... Qxd3 {[%clk 0:01:15]} 18. Be4
{[%clk 0:01:50.8]} 18... Qb5 {[%clk 0:01:07.7]} 19. Qxb5 {[%clk 0:01:48]} 19...
axb5 {[%clk 0:01:08.8]} 20. Bxc6 {[%clk 0:01:38.2]} 20... bxc6 {[%clk
0:01:08.9]} 21. Rxe5 {[%clk 0:01:39.9]} 21... Bd6 {[%clk 0:00:58.6]} 22. Re1
{[%clk 0:00:42]} 22... f5 {[%clk 0:00:58.8]} 23. f4 {[%clk 0:00:20.4]} 23...
Rfe8 {[%clk 0:00:52.6]} 24. Be3 {[%clk 0:00:20.7]} 24... Kg8 {[%clk 0:00:30]}
25. Kf2 {[%clk 0:00:21.7]} 25... g5 {[%clk 0:00:27.6]} 26. Nh5 {[%clk
0:00:20.2]} 26... gxf4 {[%clk 0:00:18.5]} 27. Bxf4 {[%clk 0:00:21.6]} 27... Kf7
{[%clk 0:00:12.8]} 28. Rxe8 {[%clk 0:00:20.2]} 28... Kxe8 {[%clk 0:00:11.5]} 29.
Nf6+ {[%clk 0:00:17.5]} 29... Kf7 {[%clk 0:00:11.3]} 30. Nh5 {[%clk 0:00:18]}
30... Bg4 {[%clk 0:00:10.2]} 31. Bxd6 {[%clk 0:00:19.1]} 31... cxd6 {[%clk
0:00:10.8]} 32. Nf4 {[%clk 0:00:20.7]} 32... Kf6 {[%clk 0:00:08.1]} 33. h3
{[%clk 0:00:21.3]} 33... Kg5 {[%clk 0:00:09.5]} 34. Ne6+ {[%clk 0:00:21.6]}
34... Kf6 {[%clk 0:00:08.7]} 35. Nf4 {[%clk 0:00:21.3]} 35... Kg5 {[%clk
0:00:09.3]} 36. Ne6+ {[%clk 0:00:20.1]} 36... Kf6 {[%clk 0:00:10.2]} 37. Nd4
{[%clk 0:00:20]} 37... Bxh3 {[%clk 0:00:10.5]} 38. a6 {[%clk 0:00:20.2]} 38...
Ke5 {[%clk 0:00:06.5]} 39. Nxc6+ {[%clk 0:00:20.7]} 39... Kd5 {[%clk 0:00:07.7]}
40. Nb4+ {[%clk 0:00:20.4]} 40... Kc5 {[%clk 0:00:08.9]} 41. Rd1 {[%clk
0:00:20.7]} 41... Bg4 {[%clk 0:00:07.9]} 42. Rd5+ {[%clk 0:00:22.2]} 42... Kb6
{[%clk 0:00:09]} 43. Rxd6+ {[%clk 0:00:23.7]} 43... Ka5 {[%clk 0:00:06.9]} 44.
Rh6 {[%clk 0:00:25.6]} 44... Ka4 {[%clk 0:00:06.3]} 45. Rxh7 {[%clk 0:00:25.1]}
45... Kb3 {[%clk 0:00:07.5]} 46. a7 {[%clk 0:00:26.6]} 46... Kxb2 {[%clk
0:00:08.5]} 47. Nd5 {[%clk 0:00:28.2]} 47... Kb3 {[%clk 0:00:03.7]} 48. Ke3
{[%clk 0:00:29.7]} 48... Bd1 {[%clk 0:00:02.7]} 49. Kd4 {[%clk 0:00:30.6]} 49...
Rd8 {[%clk 0:00:03.6]} 50. Kc5 {[%clk 0:00:28.8]} 50... Bf3 {[%clk 0:00:04.6]}
51. Nb6 {[%clk 0:00:29.5]} 51... Kxc3 {[%clk 0:00:05.7]} 52. Kxb5 {[%clk
0:00:30.7]} 52... f4 {[%clk 0:00:07]} 53. Rf7 {[%clk 0:00:31.5]} 53... Be2+
{[%clk 0:00:07.4]} 54. Kc6 {[%clk 0:00:32.2]} 54... f3 {[%clk 0:00:07.8]} 55.
a8=Q {[%clk 0:00:31.9]} 55... Rxa8 {[%clk 0:00:08.8]} 56. Nxa8 {[%clk
0:00:33.8]} 56... Kd4 {[%clk 0:00:10.2]} 57. Nc7 {[%clk 0:00:34.1]} 57... Ke3
{[%clk 0:00:11.5]} 58. Nd5+ {[%clk 0:00:35.6]} 58... Kd2 {[%clk 0:00:12.4]} 59.
Kc5 {[%clk 0:00:34.1]} 59... Ke1 {[%clk 0:00:13.5]} 60. Nf4 {[%clk 0:00:18.7]}
60... f2 {[%clk 0:00:08.9]} 61. Ng2+ {[%clk 0:00:19.7]} 61... Kf1 {[%clk
0:00:09.4]} 62. Ne3+ {[%clk 0:00:20.5]} 62... Kg1 {[%clk 0:00:04.8]} 63. Rg7+
{[%clk 0:00:20.2]} 63... Kh1 {[%clk 0:00:05.5]} 64. Kd4 {[%clk 0:00:21]} 64...
f1=Q {[%clk 0:00:05.6]} 65. Nxf1 {[%clk 0:00:22.2]} 65... Bxf1 {[%clk
0:00:07.5]} 66. Ke3 {[%clk 0:00:23.7]} 66... Kh2 {[%clk 0:00:06.2]} 67. Kf2
{[%clk 0:00:24.7]} 67... Bd3 {[%clk 0:00:07.2]} 68. Rg3 {[%clk 0:00:24.3]} 68...
Bc4 {[%clk 0:00:05.1]} 69. Rg4 {[%clk 0:00:25.4]} 69... Be6 {[%clk 0:00:05.8]}
70. Rh4+ {[%clk 0:00:26.5]} 70... Bh3 {[%clk 0:00:07]} 71. Rh5 {[%clk
0:00:27.7]} 1-0